[Event "EICC 2025"]
[Site "Eforie-Nord"]
[Date "2025.03.16"]
[Round "2.6"]
[White "Navara, David"]
[Black "Haring, Filip"]
[Result "1-0"]
[Annotator "TA"]
[ECO "B42"]
[WhiteElo "2663"]
[BlackElo "2476"]
[PlyCount "79"]
[EventDate "2025.03.14"]
[EventType "swiss"]
[EventCountry "ROU"]
[SourceTitle "playchess.com"]
[Source "ChessBase"]
[SourceQuality "1"]
[TimeControl "40/5400+30:1800+30"]

{[%evp 17,79,22,54,51,54,38,43,45,31,36,32,38,44,40,50,48,45,44,52,47,54,23,60,23,75,7,44,45,114,45,94,77,265,98,95,22,116,87,94,125,129,116,203,201,283,246,300,285,325,331,284,279,480,395,534,227,1132,1128,1116,1129,1067,1006,1315,1248]} 1. e4 {[%emt 0:00:02]} c5 {[%emt 0:00:15]} 2. Nf3 {[%emt 0:00:05]} e6 {[%emt 0:00:30]} 3. d4 {[%emt 0:00:49]} cxd4 {[%emt 0:00:12]} 4. Nxd4 {[%emt 0:00:04]} a6 {[%emt 0:00:08]} 5. Bd3 {[%emt 0:00:08]} Bc5 {[%emt 0:00:47]} 6. Nb3 {[%emt 0:00:11]} Ba7 {[%emt 0:00:06]} 7. Qe2 {[%emt 0:00:37]} Nc6 {[%emt 0:00:17]} 8. Be3 {[%emt 0:00:41]} d6 {[%emt 0:00:14]} 9. Nc3 {[%emt 0:12:36]} Nge7 {[%emt 0:00:29]} 10. f4 {[%emt 0:02:33] B42: Sicilian: Kan Variation: 5 Bd3.} b5 {[%emt 0:07:28]} 11. Bxa7 {[%emt 0:00:16]} Rxa7 {[%emt 0:00:07]} 12. Qf2 {[%emt 0:00:07] White is slightly better.} O-O {[%emt 0:13:15]} 13. O-O {[%emt 0:00:20]} Rd7 {[%emt 0:09:45]} 14. a4 {[%emt 0:02:32]} b4 {[%emt 0:04:18]} 15. Nb1 $146 {[%emt 0:01:28]} ({Predecessor:} 15. Ne2 Na5 16. Nd2 Bb7 17. Kh1 Kh8 18. b3 e5 19. Rae1 Qc7 20. Qg3 Rdd8 21. Nf3 {½-½ Mamedov,R (2529)-Ramesh,R (2507) Moscow Aeroflot op-B 2006 (8)}) 15... Ng6 {[%emt 0:05:41]} 16. g3 {[%emt 0:03:27]} Na5 {[%emt 0:08:29]} 17. Nxa5 {[%emt 0:03:38]} Qxa5 {[%emt 0:00:07]} 18. Nd2 {[%emt 0:00:09]} Bb7 {[%emt 0:02:17]} 19. Nc4 {[%emt 0:20:19]} Qc7 {[%emt 0:00:31]} 20. Qb6 {[%emt 0:02:39]} Rfd8 {[%emt 0:19:23]} (20... Bxe4 $11 {remains equal.} 21. Bxe4 Qxc4) 21. Qxb4 {[%emt 0:10:32] White is more active.} (21. a5 $16) 21... d5 {[%emt 0:00:31]} 22. exd5 {[%emt 0:00:26]} Rxd5 {[%emt 0:08:06]} (22... Bxd5 $14 23. a5 Bb7) 23. Be4 {[%emt 0:06:12]} ({White should play} 23. Qb6 $16 Qc8 24. Rfc1) 23... a5 {[%emt 0:09:07]} (23... Rd4 $14 24. Qxb7 Qxc4) 24. Nxa5 $1 $16 {[%emt 0:00:12]} Ba8 {[%emt 0:00:24] [#]} (24... Ba6 $16 25. Bxd5 Rxd5) 25. Nb3 $2 {[%emt 0:02:59]} (25. Bxd5 $18 {and the rest is easy.} Rxd5 26. Nb3) 25... Qa7+ {[%emt 0:01:26]} 26. Kh1 {[%emt 0:01:15]} (26. Rf2 $16 Rd4 27. Nxd4 Rxd4 28. Qxd4 Qxd4 29. Bxa8) 26... h5 {[%emt 0:04:45]} 27. a5 {[%emt 0:03:55][%cal Ob4b6]} h4 {[%emt 0:02:31][%cal Oh4g3] [#] Strongly threatening ...hxg3!.} 28. Qb6 {[%emt 0:00:53]} Qd7 {[%emt 0:01:56][%cal Oh4g3]} 29. Kg1 {[%emt 0:02:02]} (29. Nc5 Qc8 (29... Rxc5 30. Bxa8 Rxc2 31. Be4 $16) 30. Bxd5 Rxd5 $19) 29... h3 {[%emt 0:01:11]} 30. Qf2 $18 {[%emt 0:05:48]} (30. Nc5 Rxc5 31. Qxc5 Bxe4 $17) 30... f5 {[%emt 0:00:38]} (30... Rf5 $142) 31. Bh1 {[%emt 0:00:25][%cal Oc2c4]} (31. Bxd5 $2 Qxd5 $19) 31... e5 {[%emt 0:00:29]} 32. fxe5 {[%emt 0:08:51]} (32. Bxd5+ $2 Qxd5 $19) 32... Nxe5 {[%emt 0:00:33]} 33. Qxf5 {[%emt 0:01:17]} (33. Bxd5+ $2 Qxd5 34. Qe2 Re8 $19 (34... Qh1+ $2 35. Kf2 $19)) 33... Qa7+ {[%emt 0:00:31]} 34. Qf2 {[%emt 0:00:12]} Qc7 $2 {[%emt 0:00:30]} (34... Qd7 {keeps fighting.} 35. Nc5 (35. Bxd5+ $2 {perishes.} Qxd5 36. Qe2 Re8 $19) 35... Qc8) 35. Qb6 {[%emt 0:07:21]} Qe7 {[%emt 0:00:28]} 36. Rae1 {[%emt 0:02:21]} (36. Bxd5+ $142 Rxd5 37. Nd4) 36... R8d6 $2 {[%emt 0:00:32]} (36... R5d6 37. Qb5 Re6) 37. Qb8+ {[%emt 0:00:47] White is clearly winning.} Kh7 {[%emt 0:00:12]} 38. Qxa8 {[%emt 0:00:36]} Rd8 {[%emt 0:00:42]} 39. Qa6 {[%emt 0:00:39]} R8d6 {[%emt 0:00:37]} 40. Be4+ {[%emt 0:00:25] Weighted Error Value: White=0.35/Black=0.70  Loses game:     	---       	Black=1      Missed win:     	White=1     	---        Mistake:       	White=4     	Black=8      Inaccurate:     	White=2     	Black=2      OK:         	White=10    	Black=9      Best:        	White=1     	---        Strong:       	White=1     	---} 1-0

[Event "EICC 2025"]
[Site "Eforie-Nord"]
[Date "2025.03.16"]
[Round "2.6"]
[White "Cieslak, Patryk"]
[Black "Engel, Luis"]
[Result "1-0"]
[Annotator "ChessBase"]
[ECO "B95"]
[WhiteElo "2411"]
[BlackElo "2555"]
[PlyCount "57"]
[EventDate "2025.03.14"]
[EventType "swiss"]
[EventCountry "ROU"]
[SourceTitle "playchess.com"]
[Source "ChessBase"]
[SourceQuality "1"]
[TimeControl "40/5400+30:1800+30"]

1. e4 {[%emt 0:00:03]} c5 {[%emt 0:00:04]} 2. Nf3 {[%emt 0:00:07]} d6 {[%emt 0:00:03]} 3. d4 {[%emt 0:00:07]} cxd4 {[%emt 0:00:03]} 4. Nxd4 {[%emt 0:00:04]} Nf6 {[%emt 0:00:06]} 5. Nc3 {[%emt 0:00:04]} a6 {[%emt 0:00:05]} 6. Bg5 {[%emt 0:00:12]} e6 {[%emt 0:00:13]} 7. Qf3 {[%emt 0:00:05]} h6 {[%emt 0:00:07]} 8. Bd2 {[%emt 0:00:10]} Qc7 {[%emt 0:00:08]} 9. O-O-O {[%emt 0:01:19]} Nbd7 {[%emt 0:00:23]} 10. Qg3 {[%emt 0:06:28]} b5 {[%emt 0:00:24]} 11. a3 {[%emt 0:00:25]} Rb8 {[%emt 0:07:05]} 12. f3 {[%emt 0:03:09]} b4 {[%emt 0:01:02]} 13. axb4 {[%emt 0:00:11]} Rxb4 {[%emt 0:00:06]} 14. Nb3 {[%emt 0:01:22]} Nc5 {[%emt 0:04:27]} 15. Nxc5 {[%emt 0:03:55]} Qxc5 {[%emt 0:00:04]} 16. Bd3 {[%emt 0:02:34]} Rb8 {[%emt 0:05:54]} 17. f4 {[%emt 0:19:01]} Nd7 {[%emt 0:08:43]} 18. Kb1 {[%emt 0:14:51]} g5 {[%emt 0:06:09]} 19. Be2 {[%emt 0:22:50]} Bg7 {[%emt 0:07:19]} 20. e5 {[%emt 0:07:45]} dxe5 {[%emt 0:05:13]} 21. fxg5 {[%emt 0:00:05]} e4 {[%emt 0:02:17]} 22. Na4 {[%emt 0:01:47]} Qc6 {[%emt 0:08:03]} 23. Bc3 {[%emt 0:00:21]} Bxc3 {[%emt 0:01:04]} 24. Nxc3 {[%emt 0:00:29]} Qb7 {[%emt 0:09:50]} 25. b3 {[%emt 0:00:22]} hxg5 {[%emt 0:01:17]} 26. Rd4 {[%emt 0:03:14]} Rh6 {[%emt 0:07:00]} 27. Nxe4 {[%emt 0:01:00]} Kf8 {[%emt 0:02:04]} 28. Rxd7 {[%emt 0:00:34]} Bxd7 {[%emt 0:03:07]} 29. Nc5 {[%emt 0:00:07]} 1-0

[Event "EICC 2025"]
[Site "Eforie-Nord"]
[Date "2025.03.16"]
[Round "2.7"]
[White "Moroni, Luca Jr"]
[Black "Willems, Niels"]
[Result "1/2-1/2"]
[Annotator "ChessBase"]
[ECO "E54"]
[WhiteElo "2555"]
[BlackElo "2406"]
[PlyCount "71"]
[EventDate "2025.03.14"]
[EventType "swiss"]
[EventCountry "ROU"]
[SourceTitle "playchess.com"]
[Source "ChessBase"]
[SourceQuality "1"]
[TimeControl "40/5400+30:1800+30"]

1. d4 {[%emt 0:00:03]} Nf6 {[%emt 0:00:20]} 2. c4 {[%emt 0:00:16]} e6 {[%emt 0:00:07]} 3. Nc3 {[%emt 0:00:11]} Bb4 {[%emt 0:00:07]} 4. Nf3 {[%emt 0:00:22]} O-O {[%emt 0:00:15]} 5. e3 {[%emt 0:00:34]} d5 {[%emt 0:00:20]} 6. Bd3 {[%emt 0:00:17]} dxc4 {[%emt 0:00:28]} 7. Bxc4 {[%emt 0:00:16]} c5 {[%emt 0:00:14]} 8. a3 {[%emt 0:01:00]} Bxc3+ {[%emt 0:00:16]} 9. bxc3 {[%emt 0:00:06]} Qc7 {[%emt 0:01:14]} 10. Ba2 {[%emt 0:03:45]} b6 {[%emt 0:02:58]} 11. O-O {[%emt 0:04:23]} Bb7 {[%emt 0:01:09]} 12. h3 {[%emt 0:00:29]} Nbd7 {[%emt 0:02:37]} 13. Bb2 {[%emt 0:07:02]} cxd4 {[%emt 0:03:24]} 14. cxd4 {[%emt 0:01:20]} Bd5 {[%emt 0:00:53]} 15. Bxd5 {[%emt 0:07:14]} exd5 {[%emt 0:00:37]} 16. Rc1 {[%emt 0:01:48]} Qb7 {[%emt 0:01:41]} 17. Ne5 {[%emt 0:04:58]} Rfc8 {[%emt 0:04:15]} 18. Qa4 {[%emt 0:02:32]} a6 {[%emt 0:08:03]} 19. Qb4 {[%emt 0:03:12]} b5 {[%emt 0:17:02]} 20. a4 {[%emt 0:09:28]} Nxe5 {[%emt 0:05:50]} 21. dxe5 {[%emt 0:00:43]} Ne4 {[%emt 0:00:12]} 22. axb5 {[%emt 0:09:30]} axb5 {[%emt 0:00:34]} 23. Rxc8+ {[%emt 0:07:36]} Rxc8 {[%emt 0:00:44]} 24. Ra1 {[%emt 0:00:08]} h6 {[%emt 0:04:56]} 25. Bd4 {[%emt 0:07:41]} Rc4 {[%emt 0:03:24]} 26. Qa5 {[%emt 0:06:16]} Qd7 {[%emt 0:01:22]} 27. f3 {[%emt 0:02:27]} Ng5 {[%emt 0:01:56]} 28. Qd2 {[%emt 0:04:45]} Qf5 {[%emt 0:07:03]} 29. Ra8+ {[%emt 0:03:50]} Kh7 {[%emt 0:00:19]} 30. Ra2 {[%emt 0:00:57]} b4 {[%emt 0:12:06]} 31. Rb2 {[%emt 0:00:44]} Rc6 {[%emt 0:03:43]} 32. Qd1 {[%emt 0:04:34]} b3 {[%emt 0:04:38]} 33. h4 {[%emt 0:01:31]} Ne6 {[%emt 0:01:35]} 34. Rxb3 {[%emt 0:02:34]} Nxd4 {[%emt 0:02:32]} 35. Qxd4 {[%emt 0:00:02]} Rg6 {[%emt 0:00:59]} 36. e4 {[%emt 0:01:54]} 1/2-1/2

[Event "EICC 2025"]
[Site "Eforie-Nord"]
[Date "2025.03.16"]
[Round "2.7"]
[White "Ben Ari, Yannay"]
[Black "Wojtaszek, Radoslaw"]
[Result "1/2-1/2"]
[Annotator "TA"]
[ECO "A20"]
[WhiteElo "2474"]
[BlackElo "2659"]
[PlyCount "92"]
[EventDate "2025.03.14"]
[EventType "swiss"]
[EventCountry "ROU"]
[SourceTitle "playchess.com"]
[Source "ChessBase"]
[SourceQuality "1"]
[TimeControl "40/5400+30:1800+30"]

{[%evp 9,92,24,37,32,35,33,25,13,32,41,32,34,63,2,0,0,0,-46,-14,-14,-15,-17,-10,-20,-15,-15,-12,-20,-12,-18,-9,-8,0,-11,0,-10,0,-10,-14,-13,-14,-30,-26,-19,-16,-26,-20,-28,-13,-30,-8,-25,-25,-26,-35,-41,-41,-19,0,-23,-16,-11,0,0,0,0,0,0,0,0,0,0,0,0,0,0,0,0,0,0,0,0,0,0,1]} 1. c4 {[%emt 0:00:32]} e5 {[%emt 0:00:25]} 2. g3 {[%emt 0:00:06]} Nf6 {[%emt 0:00:05]} 3. Bg2 {[%emt 0:00:05]} h6 {[%emt 0:00:06]} 4. Nf3 {[%emt 0:01:38][%cal Bg1f3,Bf3d4,Bd4c2][%mdl 32]} e4 {[%emt 0:00:10]} 5. Nd4 {[%emt 0:00:02]} Nc6 {[%emt 0:00:10]} 6. Nc2 {[%emt 0:00:06] A20: English Opening: 1...e5.} d5 {[%emt 0:00:12]} 7. cxd5 {[%emt 0:00:08]} Qxd5 {[%emt 0:00:12]} 8. Nc3 {[%emt 0:00:27] White has an edge.} Qe6 {[%emt 0:00:18]} 9. d3 {[%emt 0:13:38]} exd3 {[%emt 0:00:08]} 10. Qxd3 {[%emt 0:00:08]} Bd7 $146 {[%emt 0:00:17]} (10... Bd6 11. Nb5 O-O 12. Nxd6 Rd8 13. Bf4 Nh5 14. Be3 Rxd6 15. Qb5 Qg6 16. Nb4 Nd4 17. Bxd4 Rxd4 {½-½ Hammer,J (2621)-Vallejo Pons,F (2710) Moscow FIDE GP 2017 (6)}) 11. Qe3 {[%emt 0:25:12]} (11. O-O $14) 11... O-O-O $11 {[%emt 0:23:34]} 12. Qxe6 {[%emt 0:01:50]} Bxe6 {[%emt 0:01:00]} 13. Be3 {[%emt 0:11:38]} (13. Bxc6 $11 bxc6 14. O-O) 13... Nd5 {[%emt 0:14:38]} 14. Nxd5 {[%emt 0:02:26]} Bxd5 {[%emt 0:00:04]} 15. Bxd5 {[%emt 0:03:23]} Rxd5 {[%emt 0:00:06]} 16. Rd1 {[%emt 0:00:08]} Rxd1+ {[%emt 0:01:31]} 17. Kxd1 {[%emt 0:00:03]} Be7 {[%emt 0:00:10]} 18. Kc1 {[%emt 0:01:09]} Bf6 {[%emt 0:00:04]} 19. h4 {[%emt 0:04:36]} h5 {[%emt 0:02:44]} 20. Bg5 {[%emt 0:09:58]} Be5 {[%emt 0:02:20]} 21. Rd1 {[%emt 0:04:15]} Re8 {[%emt 0:00:57]} 22. e3 {[%emt 0:02:42]} g6 {[%emt 0:03:43]} 23. Ne1 {[%emt 0:01:19]} Bg7 {[%emt 0:02:38]} 24. Nf3 {[%emt 0:00:50]} a5 {[%emt 0:01:44]} 25. Bf4 {[%emt 0:01:46]} b6 {[%emt 0:03:33]} 26. Ng5 {[%emt 0:01:35]} Re7 {[%emt 0:00:47]} 27. Kc2 {[%emt 0:01:32]} Nb4+ {[%emt 0:00:56]} 28. Kb1 {[%emt 0:01:55]} f6 {[%emt 0:13:48]} 29. Nf3 {[%emt 0:00:04]} f5 {[%emt 0:00:28]} 30. Ne1 {[%emt 0:01:47]} Rd7 {[%emt 0:02:27]} 31. Rxd7 {[%emt 0:01:45]} Kxd7 {[%emt 0:01:02][%mdl 4096] Endgame KBN-KBN} 32. a3 {[%emt 0:00:42][%cal Ba2a3,Ba3a4][%mdl 32]} Nd5 {[%emt 0:00:41] Strongly threatening ...Nxf4.} 33. Nd3 {[%emt 0:00:06]} Ke6 {[%emt 0:04:37]} 34. Kc2 {[%emt 0:02:26]} a4 {[%emt 0:00:36]} 35. b3 {[%emt 0:00:53] The position is equal.} axb3+ {[%emt 0:02:02]} 36. Kxb3 {[%emt 0:00:02]} c6 {[%emt 0:06:14]} 37. a4 {[%emt 0:00:43]} Bf6 {[%emt 0:01:22]} 38. Bb8 {[%emt 0:00:58]} Bg7 {[%emt 0:02:43]} 39. Bf4 {[%emt 0:01:10]} Bc3 {[%emt 0:04:19]} 40. Bg5 {[%emt 0:04:44]} b5 {[%emt 0:02:26]} 41. Bd8 {[%emt 0:03:57]} bxa4+ {[%emt 0:08:55]} 42. Kxa4 {[%emt 0:01:27]} Bg7 {[%emt 0:03:53]} 43. Kb3 {[%emt 0:01:33]} Nc3 {[%emt 0:00:07]} 44. Nf4+ {[%emt 0:03:03]} Kf7 {[%emt 0:00:05]} 45. Ba5 {[%emt 0:01:24]} Ne4 {[%emt 0:00:33]} 46. Nd3 {[%emt 0:01:44]} Bf6 {[%emt 0:02:51] Weighted Error Value: White=0.08 (flawless) /Black=0.06 (flawless)   Mistake:       	White=2     	---        Inaccurate:     	---       	Black=2      OK:         	White=12    	Black=13     Best:        	White=5     	Black=1} 1/2-1/2

[Event "EICC 2025"]
[Site "Eforie-Nord"]
[Date "2025.03.16"]
[Round "2.8"]
[White "Gledura, Benjamin"]
[Black "Davtyan, Artur"]
[Result "1-0"]
[Annotator "TA"]
[ECO "C65"]
[WhiteElo "2658"]
[BlackElo "2474"]
[PlyCount "105"]
[EventDate "2025.03.14"]
[EventType "swiss"]
[EventCountry "ROU"]
[SourceTitle "playchess.com"]
[Source "ChessBase"]
[SourceQuality "1"]
[TimeControl "40/5400+30:1800+30"]

{[%evp 9,105,21,23,22,23,12,19,10,15,2,0,9,10,0,0,0,0,0,0,12,20,-24,0,0,0,0,0,0,0,0,0,0,0,0,0,0,10,10,14,7,34,0,6,7,12,6,11,10,10,15,27,25,22,0,38,41,32,34,27,8,8,8,13,8,8,8,10,36,36,40,131,119,128,127,120,112,114,118,202,190,261,260,277,265,439,429,418,417,453,445,543,490,468,459,29982,29983,29992,29993]} 1. e4 {[%emt 0:00:04]} e5 {[%emt 0:03:13]} 2. Nf3 {[%emt 0:00:13]} Nc6 {[%emt 0:00:21]} 3. Bb5 {[%emt 0:00:19]} Nf6 {[%emt 0:00:10][%cal Bg8f6,Bf6d7,Bd7f8,Bf8e6][%mdl 32]} 4. d3 {[%emt 0:00:36]} Bc5 {[%emt 0:00:08]} 5. Bxc6 {[%emt 0:00:33]} dxc6 {[%emt 0:00:05]} 6. Nbd2 {[%emt 0:00:23] C65: Ruy Lopez: Berlin Defence (3...Nf6), unusual lines and 4 0-0 Bc5.} (6. Nxe5 $2 Qd4 7. Qe2 Qxe5 $19) 6... Nd7 {[%emt 0:00:10]} 7. Nc4 {[%emt 0:01:24][%cal Oe1g1] 7.0-0 deserves study.} f6 {[%emt 0:03:15]} 8. O-O {[%emt 0:00:42] The position is equal.} Nf8 {[%emt 0:00:45]} 9. Be3 {[%emt 0:04:09]} Bxe3 {[%emt 0:25:05]} 10. Nxe3 {[%emt 0:01:11]} Ne6 {[%emt 0:00:11]} 11. c3 {[%emt 0:01:07]} c5 {[%emt 0:01:39]} 12. Qc2 {[%emt 0:00:20]} O-O {[%emt 0:02:12]} 13. Rad1 {[%emt 0:05:33]} b6 {[%emt 0:00:18]} 14. Rd2 {[%emt 0:03:45]} Qe8 $146 {[%emt 0:14:56]} (14... Kh8 15. Rfd1 Qe8 16. d4 cxd4 17. cxd4 c5 18. dxc5 bxc5 19. Ne1 Qc6 20. b4 Rb8 21. bxc5 Qxc5 22. Qxc5 Nxc5 23. f3 {½-½ Doric,N (2442)-Asbjoernsson,A (2408) EU-chT12 sf1 email 2021}) 15. Rfd1 {[%emt 0:34:00]} Bb7 {[%emt 0:00:12]} 16. d4 {[%emt 0:10:35]} cxd4 {[%emt 0:02:41]} 17. cxd4 {[%emt 0:00:06]} exd4 {[%emt 0:03:23]} 18. Nxd4 {[%emt 0:00:11]} Nxd4 {[%emt 0:00:08]} 19. Rxd4 {[%emt 0:00:05]} c5 {[%emt 0:00:05]} 20. Rd7 {[%emt 0:04:16]} Bxe4 {[%emt 0:05:20]} 21. Qc4+ {[%emt 0:03:18]} Kh8 {[%emt 0:02:37]} 22. Rc7 {[%emt 0:06:36]} Rd8 {[%emt 0:11:49] Prevents Rdd7.} 23. Rxd8 {[%emt 0:00:16]} Qxd8 {[%emt 0:00:08]} 24. Rxa7 {[%emt 0:00:09]} Qd2 {[%emt 0:19:00][%cal Oh7h6]} 25. Nf1 {[%emt 0:15:49]} Qd3 {[%emt 0:00:06]} 26. Qxd3 {[%emt 0:04:23]} Bxd3 $11 {[%emt 0:00:01][%mdl 4096] Endgame KRB-KRN} 27. Ne3 {[%emt 0:00:22]} Rd8 {[%emt 0:04:20]} (27... Re8 $5) 28. Rb7 {[%emt 0:00:36]} b5 {[%emt 0:00:10]} 29. Rc7 {[%emt 0:01:05]} c4 {[%emt 0:00:04]} 30. a3 {[%emt 0:00:47]} h6 {[%emt 0:02:05]} 31. h4 {[%emt 0:00:57]} f5 {[%emt 0:00:50]} 32. Rc5 {[%emt 0:01:08][%csl LRb5,LRf5][%cal Oe3d5]} Re8 {[%emt 0:00:01]} 33. g3 {[%emt 0:01:13]} (33. Rxb5 f4 (33... c3 34. Rb3 $15) 34. Nxc4 Bxc4 $19) 33... g5 {[%emt 0:00:11]} 34. hxg5 {[%emt 0:00:19]} (34. Rxb5 f4 (34... c3 35. Rb3 $15) 35. gxf4 gxf4 36. Nxc4 Bxc4 $19) 34... hxg5 {[%emt 0:00:01]} 35. Kg2 {[%emt 0:00:57][%cal Og3g4]} Be4+ {[%emt 0:01:47]} 36. f3 {[%emt 0:00:08]} Bd3 {[%emt 0:00:31]} 37. Nxf5 {[%emt 0:00:29]} Re2+ {[%emt 0:00:28]} 38. Kh3 {[%emt 0:00:07]} Rxb2 {[%emt 0:00:03][%cal Oc4c3]} 39. Kg4 {[%emt 0:01:11]} Rb3 {[%emt 0:00:15]} (39... Bxf5+ $1 $14 40. Kxf5 Kh7) 40. Nd4 $1 $16 {[%emt 0:00:25]} (40. Kxg5 $6 Bxf5 41. Rxf5 Rxa3 $11) 40... Rxa3 {[%emt 0:00:20]} 41. Nxb5 {[%emt 0:30:33]} (41. Kxg5 $6 b4 $11) 41... Ra5 {[%emt 0:30:12]} 42. Rxg5 {[%emt 0:00:00]} (42. Kxg5 $6 c3 43. Rxc3 Rxb5+ 44. Kh6 Rb6+ 45. Kg5 Bb1 $11) 42... Ra4 {[%emt 0:00:00] ...c3+ is the strong threat.} 43. f4 $1 {[%emt 0:00:00][%cal Bf3f4,Bf4f5][%mdl 32]} Be2+ {[%emt 0:00:00]} (43... Ra1 $16 44. Rc5 Be2+ 45. Kf5 Bd3+ 46. Ke6 Kg7 47. Rg5+ Kf8) 44. Kh4 $18 {[%emt 0:00:00]} Ra1 {[%emt 0:00:00]} (44... Bf3 {keeps fighting.} 45. Rc5 Ra5) 45. Re5 $1 {[%emt 0:00:00]} Bf3 {[%emt 0:00:00]} 46. f5 $1 {[%emt 0:00:00] Strongly threatening Nd4.} Ra5 $2 {[%emt 0:00:00] [#]} (46... Ra8 47. f6 Rg8) 47. Re8+ $1 {[%emt 0:01:28]} Kg7 {[%emt 0:00:00]} 48. Nd4 {[%emt 0:00:09]} Bd5 {[%emt 0:00:00] [#]} 49. Kg5 $1 {[%emt 0:00:10]} Ra3 {[%emt 0:04:16]} 50. Re7+ {[%emt 0:01:04]} Kf8 {[%emt 0:01:12]} 51. Rd7 {[%emt 0:00:15]} Bf7 {[%emt 0:00:44]} (51... Rxg3+ $2 {perishes.} 52. Kf6 Ke8 53. Rxd5) (51... Ra5 $18 52. Rc7 Ra3) 52. Kf6 {[%emt 0:01:00]} Ra6+ {[%emt 0:00:04]} 53. Ne6+ {[%emt 0:00:06] Weighted Error Value: White=0.06 (flawless) /Black=0.32  Mistake:       	---       	Black=5      Inaccurate:     	White=2     	Black=2      OK:         	White=19    	Black=19     Best:        	White=2     	Black=3      Strong:       	White=6     	---} 1-0

[Event "EICC 2025"]
[Site "Eforie-Nord"]
[Date "2025.03.16"]
[Round "2.8"]
[White "Ilinca, Felix-Antonio"]
[Black "Vogel, Roven"]
[Result "0-1"]
[Annotator "ChessBase"]
[ECO "B33"]
[WhiteElo "2408"]
[BlackElo "2552"]
[PlyCount "60"]
[EventDate "2025.03.14"]
[EventType "swiss"]
[EventCountry "ROU"]
[SourceTitle "playchess.com"]
[Source "ChessBase"]
[SourceQuality "1"]
[TimeControl "40/5400+30:1800+30"]

1. e4 {[%emt 0:00:14]} c5 {[%emt 0:00:11]} 2. Nf3 {[%emt 0:00:21]} e6 {[%emt 0:00:09]} 3. d4 {[%emt 0:00:34]} cxd4 {[%emt 0:00:08]} 4. Nxd4 {[%emt 0:00:16]} Nc6 {[%emt 0:00:10]} 5. a3 {[%emt 0:00:55]} Qb6 {[%emt 0:07:15]} 6. Nb3 {[%emt 0:02:56]} Nf6 {[%emt 0:00:38]} 7. Nc3 {[%emt 0:01:09]} Qc7 {[%emt 0:02:24]} 8. f4 {[%emt 0:03:32]} d6 {[%emt 0:01:16]} 9. g4 {[%emt 0:03:23]} d5 {[%emt 0:03:38]} 10. e5 {[%emt 0:03:31]} Nd7 {[%emt 0:00:45]} 11. Be3 {[%emt 0:06:43]} a6 {[%emt 0:03:01]} 12. h4 {[%emt 0:09:50]} b5 {[%emt 0:03:13]} 13. Qd2 {[%emt 0:04:33]} Bb7 {[%emt 0:02:19]} 14. Rh3 {[%emt 0:01:40]} b4 {[%emt 0:02:42]} 15. axb4 {[%emt 0:02:32]} Bxb4 {[%emt 0:00:20]} 16. Nd4 {[%emt 0:03:51]} O-O {[%emt 0:02:31]} 17. O-O-O {[%emt 0:05:53]} Nc5 {[%emt 0:03:12]} 18. Nxc6 {[%emt 0:02:23]} Bxc6 {[%emt 0:01:49]} 19. Qd4 {[%emt 0:03:38]} Rab8 {[%emt 0:05:08]} 20. Kb1 {[%emt 0:06:07]} Bxc3 {[%emt 0:09:47]} 21. Qxc5 {[%emt 0:02:23]} Bxb2 {[%emt 0:09:37]} 22. Ka2 {[%emt 0:00:23]} Qb7 {[%emt 0:00:31]} 23. Bg1 {[%emt 0:16:31]} Ba4 {[%emt 0:01:15]} 24. Rb1 {[%emt 0:02:41]} Rfc8 {[%emt 0:01:02]} 25. Qb6 {[%emt 0:00:24]} Rxc2 {[%emt 0:08:08]} 26. Rxb2 {[%emt 0:04:42]} Rxb2+ {[%emt 0:00:59]} 27. Kxb2 {[%emt 0:00:08]} Qc7 {[%emt 0:03:40]} 28. Rb3 {[%emt 0:01:53]} Rxb6 {[%emt 0:00:11]} 29. Rxb6 {[%emt 0:00:08]} Qc2+ {[%emt 0:00:46]} 30. Ka3 {[%emt 0:00:30]} h5 {[%emt 0:00:11]} 0-1